[Event "58th Akiba Rubinstein B 2022"]
[Site "Polanica-Zdroj"]
[Date "2022.08.20"]
[Round "8.10"]
[White "Sypien, Natan"]
[Black "Trusz, Julia"]
[Result "1/2-1/2"]
[ECO "B17"]
[WhiteElo "1780"]
[BlackElo "1706"]
[Annotator "NA RC"]
[PlyCount "76"]
[EventDate "2022.08.13"]
[EventCountry "POL"]
[SourceTitle "playchess.com"]
[Source "ChessBase"]
[SourceQuality "1"]
[TimeControl "40/5400+30:1800+30"]

1. e4 {[%emt 0:00:02]} c6 {[%emt 0:00:25]} 2. d4 {[%emt 0:00:05]} d5 {[%emt 0:00:08]} 3. Nc3 {[%emt 0:00:03]} dxe4 {[%emt 0:00:24]} 4. Nxe4 {[%emt 0:00:02]} Nd7 {[%emt 0:00:43]} 5. Nf3 {[%emt 0:03:58]} Ngf6 {[%emt 0:01:06]} 6. Ng3 {[%emt 0:02:47]} g6 {[%emt 0:03:19]} 7. Be2 {[%emt 0:15:50]} Bg7 {[%emt 0:03:39]} 8. Bg5 {[%emt 0:01:01]} Qb6 {[%emt 0:14:36]} 9. Qc1 {[%emt 0:06:04]} h6 {[%emt 0:07:08]} 10. Bd2 {[%emt 0:00:09]} c5 {[%emt 0:04:11]} 11. c3 {[%emt 0:00:02]} cxd4 {[%emt 0:02:43]} 12. cxd4 {[%emt 0:02:17]} Nd5 {[%emt 0:00:34]} 13. O-O {[%emt 0:00:38]} N7f6 {[%emt 0:01:26]} 14. a4 {[%emt 0:13:37]} Bd7 {[%emt 0:08:58]} 15. a5 {[%emt 0:02:20]} Qc7 {[%emt 0:04:24]} 16. Qd1 {[%emt 0:16:07]} O-O {[%emt 0:04:31]} 17. Ne5 {[%emt 0:00:52]} Be6 {[%emt 0:08:13]} 18. f4 {[%emt 0:01:46]} Bc8 {[%emt 0:17:31]} 19. f5 {[%emt 0:08:52]} g5 {[%emt 0:00:48]} 20. Bd3 {[%emt 0:02:23]} Nd7 {[%emt 0:02:26]} 21. Rc1 {[%emt 0:02:13]} Qd6 {[%emt 0:01:12]} 22. Ne4 {[%emt 0:00:10]} Qb8 {[%emt 0:00:17]} 23. Nxd7 {[%emt 0:12:58]} Bxd4+ {[%emt 0:00:50]} 24. Kh1 {[%emt 0:00:01]} Bxd7 {[%emt 0:00:09]} 25. Qh5 {[%emt 0:00:33]} Bg7 {[%emt 0:01:49]} 26. Bxg5 {[%emt 0:00:50]} hxg5 {[%emt 0:01:25]} 27. f6 {[%emt 0:00:09]} Nf4 {[%emt 0:04:47]} 28. Qxg5 {[%emt 0:04:06]} Ng6 {[%emt 0:00:16]} 29. fxe7 {[%emt 0:03:01]} Rc8 {[%emt 0:04:20]} 30. Nf6+ {[%emt 0:00:02]} Bxf6 {[%emt 0:00:10]} 31. Rxc8+ {[%emt 0:00:02]} Qxc8 {[%emt 0:00:23]} 32. Qxf6 {[%emt 0:00:07]} Qe8 {[%emt 0:00:46]} 33. Bc4 {[%emt 0:02:03]} Be6 {[%emt 0:00:56]} 34. Bxe6 {[%emt 0:00:02]} fxe6 {[%emt 0:00:08]} 35. Qxe6+ {[%emt 0:00:03]} Kg7 {[%emt 0:00:17]} 36. Qf6+ {[%emt 0:01:02]} Kg8 {[%emt 0:00:19]} 37. Qe6+ {[%emt 0:01:40]} Kg7 {[%emt 0:00:12]} 38. Qf6+ {[%emt 0:00:03]} Kg8 {[%emt 0:00:06]} 1/2-1/2

[Event "58th Akiba Rubinstein B 2022"]
[Site "Polanica-Zdroj"]
[Date "2022.08.20"]
[Round "8.12"]
[White "Rzenca, Jerzy"]
[Black "Lewandrowski, Tomasz"]
[Result "0-1"]
[ECO "A30"]
[WhiteElo "1668"]
[BlackElo "1902"]
[Annotator "NA RC"]
[PlyCount "70"]
[EventDate "2022.08.13"]
[EventCountry "POL"]
[SourceTitle "playchess.com"]
[Source "ChessBase"]
[SourceQuality "1"]
[TimeControl "40/5400+30:1800+30"]

1. c4 {[%emt 0:00:01]} c5 {[%emt 0:01:24]} 2. g3 {[%emt 0:00:07]} g6 {[%emt 0:00:42]} 3. Bg2 {[%emt 0:00:05]} Bg7 {[%emt 0:00:11]} 4. Nc3 {[%emt 0:00:18]} d6 {[%emt 0:00:46]} 5. d3 {[%emt 0:08:25]} Nc6 {[%emt 0:01:02]} 6. Rb1 {[%emt 0:01:56]} e5 {[%emt 0:06:18]} 7. e4 {[%emt 0:01:22]} h5 {[%emt 0:03:01]} 8. Nf3 {[%emt 0:10:00]} Bg4 {[%emt 0:02:16]} 9. h3 {[%emt 0:02:36]} Bxf3 {[%emt 0:00:27]} 10. Bxf3 {[%emt 0:01:24]} Bh6 {[%emt 0:04:43]} 11. O-O {[%emt 0:01:15]} Bxc1 {[%emt 0:00:49]} 12. Qxc1 {[%emt 0:00:21]} h4 {[%emt 0:05:01]} 13. Kg2 {[%emt 0:00:48]} Qd7 {[%emt 0:02:56]} 14. g4 {[%emt 0:04:37]} f6 {[%emt 0:04:08]} 15. Bd1 {[%emt 0:02:20]} O-O-O {[%emt 0:05:41]} 16. Ba4 {[%emt 0:02:48]} Nge7 {[%emt 0:10:41]} 17. b4 {[%emt 0:07:25]} cxb4 {[%emt 0:02:18]} 18. Rxb4 {[%emt 0:02:59]} f5 {[%emt 0:04:51]} 19. f3 {[%emt 0:09:34]} fxg4 {[%emt 0:01:56]} 20. fxg4 {[%emt 0:01:03]} Rdf8 {[%emt 0:00:47]} 21. Rb2 {[%emt 0:01:57]} Qd8 {[%emt 0:02:36]} 22. Bxc6 {[%emt 0:15:26]} Nxc6 {[%emt 0:00:15]} 23. Nd5 {[%emt 0:03:45]} Nd4 {[%emt 0:04:51]} 24. c5 {[%emt 0:06:55]} Rxf1 {[%emt 0:00:34]} 25. Kxf1 {[%emt 0:00:04]} Rf8+ {[%emt 0:00:14]} 26. Kg2 {[%emt 0:00:14]} dxc5 {[%emt 0:01:01]} 27. Qxc5+ {[%emt 0:00:10]} Kb8 {[%emt 0:00:10]} 28. Ne7 {[%emt 0:03:38]} Ka8 {[%emt 0:03:42]} 29. Nxg6 {[%emt 0:02:18]} Rf3 {[%emt 0:03:24]} 30. Nxe5 {[%emt 0:04:25]} Rg3+ {[%emt 0:00:31]} 31. Kh2 {[%emt 0:00:04]} Ne6 {[%emt 0:01:46]} 32. Qb5 {[%emt 0:05:12]} Qb8 {[%emt 0:00:33]} 33. Rd2 {[%emt 0:02:27]} a6 {[%emt 0:00:43]} 34. Qb2 {[%emt 0:00:52]} Ng5 {[%emt 0:01:33]} 35. Qc3 {[%emt 0:00:36]} Nxe4 {[%emt 0:05:13]} 0-1

[Event "58th Akiba Rubinstein B 2022"]
[Site "Polanica-Zdroj"]
[Date "2022.08.20"]
[Round "8.13"]
[White "Wilk, Aleksander"]
[Black "Penza, Denis"]
[Result "1/2-1/2"]
[ECO "B00"]
[WhiteElo "1569"]
[BlackElo "1836"]
[Annotator "NA"]
[PlyCount "80"]
[EventDate "2022.08.13"]
[EventCountry "POL"]
[SourceTitle "playchess.com"]
[Source "ChessBase"]
[SourceQuality "1"]
[TimeControl "40/5400+30:1800+30"]

1. e4 {[%emt 0:00:02]} Nc6 {[%emt 0:02:38]} 2. d3 {[%emt 0:02:00]} e5 {[%emt 0:01:42]} 3. Nc3 {[%emt 0:01:31]} Nf6 {[%emt 0:01:06]} 4. Nf3 {[%emt 0:02:49]} Be7 {[%emt 0:04:37]} 5. Be2 {[%emt 0:01:19]} d5 {[%emt 0:01:02]} 6. exd5 {[%emt 0:00:38]} Nxd5 {[%emt 0:00:07]} 7. Nxd5 {[%emt 0:00:13]} Qxd5 {[%emt 0:00:09]} 8. Bd2 {[%emt 0:00:34]} Be6 {[%emt 0:02:55]} 9. a3 {[%emt 0:01:18]} f6 {[%emt 0:02:01]} 10. c4 {[%emt 0:03:28]} Qd7 {[%emt 0:00:34]} 11. Bc3 {[%emt 0:00:47]} O-O-O {[%emt 0:10:13]} 12. Qa4 {[%emt 0:00:54]} Kb8 {[%emt 0:04:31]} 13. b4 {[%emt 0:06:59]} Nd4 {[%emt 0:05:07]} 14. Qxd7 {[%emt 0:02:07]} Nxf3+ {[%emt 0:00:10]} 15. Bxf3 {[%emt 0:00:23]} Rxd7 {[%emt 0:00:06]} 16. O-O-O {[%emt 0:02:16]} Rhd8 {[%emt 0:01:18]} 17. Kc2 {[%emt 0:02:11]} Bf5 {[%emt 0:07:51]} 18. Be4 {[%emt 0:00:06]} Bxe4 {[%emt 0:04:29]} 19. dxe4 {[%emt 0:00:11]} c6 {[%emt 0:00:28]} 20. Rxd7 {[%emt 0:00:33]} Rxd7 {[%emt 0:00:01]} 21. Rd1 {[%emt 0:00:17]} Rxd1 {[%emt 0:00:41]} 22. Kxd1 {[%emt 0:00:07]} b5 {[%emt 0:00:57]} 23. cxb5 {[%emt 0:00:18]} cxb5 {[%emt 0:00:05]} 24. Kc2 {[%emt 0:00:07]} Kb7 {[%emt 0:03:21]} 25. Kd3 {[%emt 0:00:45]} a5 {[%emt 0:01:14]} 26. f3 {[%emt 0:00:44]} Kc6 27. g4 {[%emt 0:03:59]} a4 {[%emt 0:02:50]} 28. h3 Kd6 {[%emt 0:00:43]} 29. Bd2 {[%emt 0:00:55]} Ke6 {[%emt 0:00:14]} 30. Be1 {[%emt 0:01:09]} g6 {[%emt 0:00:28]} 31. Bh4 {[%emt 0:05:07]} Bf8 {[%emt 0:00:33]} 32. Be1 {[%emt 0:01:52]} Bh6 {[%emt 0:01:18]} 33. Bd2 {[%emt 0:01:24]} Bf8 {[%emt 0:00:16]} 34. Be3 {[%emt 0:01:08]} Kf7 {[%emt 0:01:04]} 35. Bd2 {[%emt 0:01:07]} h5 {[%emt 0:00:31]} 36. Be3 {[%emt 0:02:11]} Kg8 {[%emt 0:19:37]} 37. f4 {[%emt 0:04:30]} hxg4 {[%emt 0:03:57]} 38. hxg4 {[%emt 0:00:06]} exf4 39. Bxf4 Kf7 {[%emt 0:00:37]} 40. Kd4 {[%emt 0:00:00]} Ke6 {[%emt 0:01:10]} 1/2-1/2

[Event "58th Akiba Rubinstein B 2022"]
[Site "Polanica-Zdroj"]
[Date "2022.08.20"]
[Round "8.14"]
[White "Rylski, Tadeusz"]
[Black "Turek, Michal"]
[Result "1-0"]
[ECO "C78"]
[WhiteElo "1794"]
[BlackElo "1681"]
[Annotator "NA RC"]
[PlyCount "41"]
[EventDate "2022.08.13"]
[EventCountry "POL"]
[SourceTitle "playchess.com"]
[Source "ChessBase"]
[SourceQuality "1"]
[TimeControl "40/5400+30:1800+30"]

1. e4 {[%emt 0:00:08]} e5 {[%emt 0:00:05]} 2. Nf3 {[%emt 0:00:05]} Nc6 {[%emt 0:00:07]} 3. Bb5 {[%emt 0:00:07]} a6 {[%emt 0:00:06]} 4. Ba4 {[%emt 0:00:05]} Nf6 {[%emt 0:00:07]} 5. O-O {[%emt 0:00:06]} Bc5 {[%emt 0:00:06]} 6. c3 {[%emt 0:00:11]} b5 {[%emt 0:00:04]} 7. Bc2 {[%emt 0:00:05]} d5 {[%emt 0:00:07]} 8. a4 {[%emt 0:00:11]} Rb8 {[%emt 0:01:34]} 9. axb5 {[%emt 0:00:23]} axb5 {[%emt 0:00:05]} 10. d4 {[%emt 0:01:27]} dxe4 {[%emt 0:00:24]} 11. Nxe5 {[%emt 0:00:28]} Nxe5 {[%emt 0:00:11]} 12. dxc5 {[%emt 0:00:19]} Qxd1 {[%emt 0:02:00]} 13. Rxd1 {[%emt 0:01:17]} O-O {[%emt 0:09:10]} 14. Bf4 {[%emt 0:05:39]} Re8 {[%emt 0:08:13]} 15. Bxe5 {[%emt 0:09:06]} Rxe5 {[%emt 0:00:14]} 16. Rd8+ {[%emt 0:00:53]} Ne8 {[%emt 0:08:08]} 17. Ra7 {[%emt 0:07:10]} e3 {[%emt 0:06:53]} 18. fxe3 {[%emt 0:02:10]} Bf5 {[%emt 0:01:08]} 19. Rxb8 {[%emt 0:00:52]} Bxc2 {[%emt 0:00:04]} 20. Na3 {[%emt 0:00:42]} Bg6 {[%emt 0:00:24]} 21. Nxb5 {[%emt 0:01:03]} 1-0

[Event "58th Akiba Rubinstein B 2022"]
[Site "Polanica-Zdroj"]
[Date "2022.08.20"]
[Round "8.15"]
[White "Kowalczyk, Wojciech"]
[Black "Szydelko, Michal"]
[Result "1-0"]
[ECO "C24"]
[WhiteElo "1835"]
[BlackElo "1833"]
[Annotator "NA RC"]
[PlyCount "96"]
[EventDate "2022.08.13"]
[EventCountry "POL"]
[SourceTitle "playchess.com"]
[Source "ChessBase"]
[SourceQuality "1"]
[TimeControl "40/5400+30:1800+30"]

1. e4 {[%emt 0:00:05]} e5 {[%emt 0:00:14]} 2. Bc4 {[%emt 0:00:12]} Nf6 {[%emt 0:00:16]} 3. d3 {[%emt 0:00:21]} Nc6 {[%emt 0:00:11]} 4. Nc3 {[%emt 0:00:11]} Bb4 {[%emt 0:00:20]} 5. Nge2 {[%emt 0:00:57]} d5 {[%emt 0:01:51]} 6. exd5 {[%emt 0:00:15]} Nxd5 {[%emt 0:00:01]} 7. O-O {[%emt 0:00:13]} Nxc3 {[%emt 0:03:43]} 8. Nxc3 {[%emt 0:02:10]} O-O {[%emt 0:01:53]} 9. Qh5 {[%emt 0:15:43]} Bxc3 {[%emt 0:09:36]} 10. bxc3 {[%emt 0:00:14]} Qf6 {[%emt 0:00:04]} 11. Rb1 {[%emt 0:12:29]} Qg6 {[%emt 0:09:24]} 12. Qxg6 {[%emt 0:09:59]} hxg6 {[%emt 0:00:08]} 13. f4 {[%emt 0:03:24]} Na5 {[%emt 0:34:57]} 14. Bd5 {[%emt 0:13:35]} c6 {[%emt 0:00:07]} 15. Bf3 {[%emt 0:00:59]} exf4 {[%emt 0:12:29]} 16. Ba3 {[%emt 0:22:23]} Bd7 {[%emt 0:04:53]} 17. Bxf8 {[%emt 0:03:54]} Kxf8 {[%emt 0:00:01]} 18. Bd1 {[%emt 0:04:10]} g5 {[%emt 0:00:51]} 19. h4 {[%emt 0:00:24]} gxh4 {[%emt 0:00:01]} 20. Rxf4 {[%emt 0:00:11]} g5 {[%emt 0:00:04]} 21. Rd4 {[%emt 0:01:37]} Be6 {[%emt 0:00:39]} 22. Bg4 {[%emt 0:01:36]} Bxg4 {[%emt 0:02:11]} 23. Rxg4 {[%emt 0:00:05]} f6 {[%emt 0:00:02]} 24. Rf1 {[%emt 0:01:54]} Kg7 {[%emt 0:01:43]} 25. Re4 {[%emt 0:00:58]} Kg6 {[%emt 0:01:46]} 26. Re7 {[%emt 0:01:29]} Rf8 {[%emt 0:00:42]} 27. Rfe1 {[%emt 0:00:14]} Rd8 {[%emt 0:02:09]} 28. R1e6 {[%emt 0:00:39]} Rd5 {[%emt 0:00:42]} 29. c4 {[%emt 0:00:29]} Rd4 {[%emt 0:00:20]} 30. Re4 {[%emt 0:00:31]} Rd6 {[%emt 0:07:27]} 31. R4e6 {[%emt 0:00:20]} Rxe6 {[%emt 0:00:13]} 32. Rxe6 {[%emt 0:00:09]} Kf7 {[%emt 0:00:00]} 33. Rd6 {[%emt 0:00:27]} c5 {[%emt 0:03:27]} 34. Rd5 {[%emt 0:01:09]} Ke6 {[%emt 0:00:01]} 35. Rxc5 {[%emt 0:00:23]} Nc6 {[%emt 0:00:00]} 36. Kf2 {[%emt 0:01:53]} f5 {[%emt 0:02:15]} 37. Rb5 {[%emt 0:01:09]} b6 {[%emt 0:00:43]} 38. c5 {[%emt 0:00:21]} bxc5 {[%emt 0:00:29]} 39. Rxc5 {[%emt 0:00:09]} Nb4 {[%emt 0:00:28]} 40. a3 {[%emt 0:00:00]} Nd5 {[%emt 0:00:00]} 41. Ra5 {[%emt 0:02:31]} Nf4 {[%emt 0:01:06]} 42. Rxa7 {[%emt 0:02:30]} h3 {[%emt 0:00:02]} 43. gxh3 {[%emt 0:09:48]} Nxh3+ {[%emt 0:00:40]} 44. Kg3 {[%emt 0:00:25]} g4 {[%emt 0:00:44]} 45. a4 {[%emt 0:02:30]} Ng1 {[%emt 0:00:19]} 46. Rg7 {[%emt 0:01:46]} Ne2+ {[%emt 0:00:09]} 47. Kf2 {[%emt 0:00:33]} Nd4 {[%emt 0:00:38]} 48. a5 {[%emt 0:04:40]} Kd5 1-0

[Event "58th Akiba Rubinstein B 2022"]
[Site "Polanica-Zdroj"]
[Date "2022.08.21"]
[Round "9.1"]
[White "Terkiewicz, Bruno"]
[Black "Chmiel, Marcin"]
[Result "0-1"]
[ECO "D70"]
[WhiteElo "1473"]
[BlackElo "2192"]
[Annotator "TA"]
[PlyCount "56"]
[EventDate "2022.08.13"]
[EventCountry "POL"]
[SourceTitle "playchess.com"]
[Source "ChessBase"]
[SourceQuality "1"]
[TimeControl "40/5400+30:1800+30"]

{[%evp 9,56,0,4,0,0,0,20,12,8,5,12,8,3,0,4,-14,-6,-12,-3,-49,-52,-104,-95,-83,107,128,121,128,210,-121,-146,-171,-156,-5566,-5606,-2245,-687,-1355,-802,-29979,-29980,-29980,-29981,-29981,-29982,-29981,-29982,-5565,-4521]} 1. d4 {[%emt 0:00:01]} d5 {[%emt 0:00:29]} 2. c4 {[%emt 0:00:03]} c6 {[%emt 0:00:05]} 3. Nf3 {[%emt 0:00:07]} Nf6 {[%emt 0:00:06]} 4. Nbd2 {[%emt 0:00:02]} Bf5 {[%emt 0:00:30]} 5. Nh4 {[%emt 0:00:06]} Be4 {[%emt 0:05:07]} 6. e3 {[%emt 0:00:09] D11: Slav Defence: 3 Nf3 sidelines and 3...Nf6 4 e3 Bg4.} e6 {[%emt 0:01:18]} 7. Be2 {[%emt 0:00:32]} Bd6 {[%emt 0:04:03]} 8. Nhf3 {[%emt 0:03:02] The position is equal.} (8. O-O {with more complications.} O-O 9. g3 c5 10. a3) 8... O-O {[%emt 0:01:47]} 9. O-O {[%emt 0:00:09]} Nbd7 {[%emt 0:01:05]} 10. Nxe4 {[%emt 0:03:30]} Nxe4 {[%emt 0:01:19]} 11. Qc2 {[%emt 0:01:26]} f5 {[%emt 0:01:40] [#]} 12. b3 $146 {[%emt 0:01:57]} ({Predecessor:} 12. b4 Rf6 13. b5 Rh6 14. g3 Rc8 15. bxc6 bxc6 16. Rb1 Ndf6 17. Ne5 Bxe5 18. dxe5 {0-1 (38) Postny,E (2600)-Le,T (2501) Chess.com INT 2020}) 12... Qf6 {[%emt 0:03:50]} 13. a4 {[%emt 0:02:34]} g5 {[%emt 0:06:56][%cal Bg7g5,Bg5g4][%mdl 32] Hoping for ...g4.} 14. Ba3 {[%emt 0:01:05]} (14. Nd2 $11 {feels stronger.}) 14... g4 $1 $15 {[%emt 0:01:18]} 15. Ne1 {[%emt 0:08:07] [#]} (15. Bxd6 $15 gxf3 16. Bxf8 fxe2 17. Qxe2 Qxf8 18. Rac1) 15... Bxh2+ $1 $17 {[%emt 0:09:38][%mdl 512]} 16. Kxh2 {[%emt 0:00:27]} Qh4+ $2 {[%emt 0:00:11]} (16... Qh6+ $17 17. Kg1 g3) 17. Kg1 $16 {[%emt 0:00:09]} Rf6 {[%emt 0:11:03]} 18. Be7 $1 {[%emt 0:02:53]} ({Much worse is} 18. g3 $6 Nxg3 $1 19. fxg3 Qxg3+ 20. Ng2 Rh6 $14) 18... Raf8 {[%emt 0:10:54]} 19. Bxf6 $2 {[%emt 0:06:09]} (19. Bxf8 Nxf8 20. g3 Qh3 21. Bxg4 fxg4 $17) ({White must play} 19. g3 $1 $18 {[%cal Rg3h4]} Nxg3 20. fxg3 Qxg3+ 21. Ng2) 19... Rxf6 $17 {[%emt 0:01:00] The board is on fire.} 20. g3 {[%emt 0:01:26]} Qh3 $40 {[%emt 0:02:50][%mdl 128] ( -> ...Rh6). Black goes for the king.} 21. Ng2 $2 {[%emt 0:00:54] [#] This costs White the game.} (21. Bxg4 $17 fxg4 22. f3) 21... Rh6 $1 $19 {[%emt 0:00:19][%csl Gh6][%cal Rh3h1]} 22. Nh4 {[%emt 0:00:09] [#]} Ng5 {[%emt 0:03:18]} (22... Nxg3 $142 $1 {[%mdl 512]} 23. f4 Qxh4) 23. Bxg4 {[%emt 0:07:22]} fxg4 {[%emt 0:02:32][%cal Bf5g4,Bg4g3][%mdl 32]} 24. f4 {[%emt 0:03:30]} Qxg3+ {[%emt 0:00:42]} 25. Qg2 {[%emt 0:00:35]} Nh3+ {[%emt 0:01:55]} 26. Kh1 {[%emt 0:00:16]} Qxh4 {[%emt 0:00:15]} 27. Ra2 {[%emt 0:01:22]} g3 {[%emt 0:01:37]} 28. Rf3 {[%emt 0:01:21]} Nxf4+ {[%emt 0:00:30] Weighted Error Value: White=0.84/Black=0.42} 0-1

[Event "58th Akiba Rubinstein B 2022"]
[Site "Polanica-Zdroj"]
[Date "2022.08.21"]
[Round "9.2"]
[White "Zerebiec, Maurycy"]
[Black "Mielczarek, Daniel"]
[Result "1/2-1/2"]
[ECO "A11"]
[WhiteElo "1915"]
[BlackElo "1912"]
[Annotator "NA RC"]
[PlyCount "25"]
[EventDate "2022.08.13"]
[EventCountry "POL"]
[SourceTitle "playchess.com"]
[Source "ChessBase"]
[SourceQuality "1"]
[TimeControl "40/5400+30:1800+30"]

1. c4 {[%emt 0:00:02]} c6 {[%emt 0:00:26]} 2. Nc3 {[%emt 0:00:06]} d5 {[%emt 0:00:19]} 3. cxd5 {[%emt 0:00:02]} cxd5 {[%emt 0:00:08]} 4. d4 {[%emt 0:00:04]} Nf6 {[%emt 0:00:43]} 5. Nf3 {[%emt 0:00:02]} Nc6 {[%emt 0:00:52]} 6. Bf4 {[%emt 0:00:09]} a6 {[%emt 0:00:56]} 7. e3 {[%emt 0:00:08]} Bg4 {[%emt 0:02:39]} 8. Be2 {[%emt 0:00:11]} e6 {[%emt 0:15:29]} 9. Ne5 {[%emt 0:01:29]} Bxe2 {[%emt 0:02:51]} 10. Qxe2 {[%emt 0:01:38]} Rc8 {[%emt 0:01:19]} 11. O-O {[%emt 0:00:16]} Bd6 {[%emt 0:01:59]} 12. Rac1 {[%emt 0:06:11]} O-O {[%emt 0:00:57]} 13. Nxc6 {[%emt 0:14:28]} 1/2-1/2

[Event "58th Akiba Rubinstein B 2022"]
[Site "Polanica-Zdroj"]
[Date "2022.08.21"]
[Round "9.3"]
[White "Lukasiewicz, Anna"]
[Black "Jaworski, Tymon"]
[Result "1-0"]
[ECO "C77"]
[WhiteElo "1954"]
[BlackElo "1701"]
[Annotator "NA RC"]
[PlyCount "87"]
[EventDate "2022.08.13"]
[EventCountry "POL"]
[SourceTitle "playchess.com"]
[Source "ChessBase"]
[SourceQuality "1"]
[TimeControl "40/5400+30:1800+30"]

1. e4 {[%emt 0:00:02]} e5 {[%emt 0:00:07]} 2. Nf3 {[%emt 0:00:09]} Nc6 {[%emt 0:00:07]} 3. Bb5 {[%emt 0:00:12]} a6 {[%emt 0:00:10]} 4. Ba4 {[%emt 0:00:05]} Nf6 {[%emt 0:00:11]} 5. d3 {[%emt 0:00:17]} b5 {[%emt 0:00:36]} 6. Bb3 {[%emt 0:00:08]} Be7 {[%emt 0:00:10]} 7. c3 {[%emt 0:00:41]} d6 {[%emt 0:00:43]} 8. O-O {[%emt 0:01:44]} O-O {[%emt 0:01:15]} 9. a4 {[%emt 0:05:05]} Bb7 {[%emt 0:03:34]} 10. Re1 {[%emt 0:03:10]} h6 {[%emt 0:06:07]} 11. Nbd2 {[%emt 0:00:55]} Re8 {[%emt 0:02:09]} 12. Nf1 {[%emt 0:03:37]} Bf8 {[%emt 0:03:01]} 13. Ng3 {[%emt 0:05:53]} Na5 {[%emt 0:01:58]} 14. Bc2 {[%emt 0:01:26]} c5 {[%emt 0:00:54]} 15. Nf5 {[%emt 0:28:25]} Qc7 {[%emt 0:08:35]} 16. h3 {[%emt 0:07:17]} d5 {[%emt 0:03:48]} 17. Nh2 {[%emt 0:01:07]} dxe4 {[%emt 0:05:31]} 18. dxe4 {[%emt 0:00:06]} Nc6 {[%emt 0:15:56]} 19. Qf3 {[%emt 0:03:49]} Nh7 {[%emt 0:01:17]} 20. Ng4 {[%emt 0:05:55]} Re6 {[%emt 0:03:28]} 21. axb5 {[%emt 0:06:34]} axb5 {[%emt 0:00:23]} 22. Rxa8 {[%emt 0:00:06]} Bxa8 {[%emt 0:00:07]} 23. Nge3 {[%emt 0:02:53]} Ne7 {[%emt 0:10:52]} 24. Nd5 {[%emt 0:02:58]} Qb7 {[%emt 0:07:46]} 25. Qg3 {[%emt 0:10:28]} Nxf5 {[%emt 0:11:06]} 26. exf5 {[%emt 0:00:23]} Re8 {[%emt 0:03:14]} 27. Be4 {[%emt 0:03:43]} Qb8 {[%emt 0:02:49]} 28. f6 {[%emt 0:00:37]} Bxd5 {[%emt 0:01:07]} 29. fxg7 {[%emt 0:01:07]} Bd6 {[%emt 0:05:43]} 30. Bxd5 {[%emt 0:02:13]} Qd8 {[%emt 0:00:20]} 31. Bc6 {[%emt 0:01:13]} Re6 {[%emt 0:01:06]} 32. Bxb5 {[%emt 0:00:25]} Rg6 {[%emt 0:00:50]} 33. Qe3 {[%emt 0:01:20]} Ng5 {[%emt 0:00:57]} 34. Kh1 {[%emt 0:00:59]} Rxg7 {[%emt 0:00:29]} 35. Bc6 {[%emt 0:00:55]} f5 {[%emt 0:00:48]} 36. Rd1 {[%emt 0:00:36]} Qe7 {[%emt 0:00:30]} 37. Qd3 {[%emt 0:00:15]} Nf7 {[%emt 0:00:42]} 38. Qxf5 {[%emt 0:00:16]} Qc7 {[%emt 0:00:32]} 39. Bd5 {[%emt 0:00:26]} Rh7 {[%emt 0:00:23]} 40. Bxf7+ {[%emt 0:00:00]} Rxf7 {[%emt 0:00:00]} 41. Qg6+ {[%emt 0:01:18]} Kf8 {[%emt 0:00:29]} 42. Rxd6 {[%emt 0:01:16]} Rxf2 {[%emt 0:00:24]} 43. Bxh6+ {[%emt 0:00:17]} Ke7 {[%emt 0:00:09]} 44. Qe6# {[%emt 0:00:13]} 1-0